fUST/lending_fUST_20250921
["ID","MTS","AMOUNT","RATE_DAILY","PERIOD"]
[386656307,1758451862066,-5000.0,0.00023083,2]
[386656308,1758451862075,-250.0,0.000231,2]
[386656309,1758451862084,-250.0,0.000231,2]
[386656310,1758451862094,-5358.23,0.000231,7]
[386656311,1758451862103,-160.0,0.000231,7]
[386656312,1758451862112,-160.0,0.0002311,6]
[386656313,1758451862123,-210.37866474,0.0002311,5]
[386656314,1758451862132,-12719.39472188,0.00023116,2]
[386656315,1758451862141,-435.0,0.00023123,2]
[386656316,1758451862150,-435.0,0.00023126,2]
[386656317,1758451862160,-576.25571609,0.0002315,2]
[386656318,1758451862170,-179.0,0.00023163,2]
[386656319,1758451862179,-660.0,0.00023168,2]
[386656320,1758451862189,-10704.37735125,0.00023187,2]
[386656321,1758451862199,-179.0,0.00023197,2]
[386656322,1758451862208,-2000.0,0.000232,2]
[386656323,1758451862218,-2000.0,0.000232,2]
[386656324,1758451862227,-2000.0,0.000232,2]
[386656325,1758451862237,-2000.0,0.000232,2]
[386656326,1758451862246,-20025.19,0.00023253,2]
[386656327,1758451862256,-152.863996,0.00023253,7]
[386656328,1758451862266,-151.0,0.00023253,7]
[386656329,1758451862276,-194.852732,0.00023253,7]
[386656330,1758451862286,-194.852732,0.00023253,7]
[386656331,1758451862295,-194.852732,0.00023253,7]
[386656332,1758451862305,-194.852732,0.00023253,7]
[386656333,1758451862315,-480.0,0.00023287,2]
[386656334,1758451862325,-480.0,0.00023287,2]
[386656335,1758451862336,-480.0,0.00023287,2]
[386656336,1758451862346,-565.20306504,0.00023287,2]
[386656337,1758451862355,-586.44176533,0.00023287,2]
[386656338,1758451862366,-861.84,0.00023287,2]
[386656339,1758451862376,-935.99,0.00023287,2]
[386656340,1758451862389,-530.57,0.00023287,2]
[386656341,1758451862398,-1522.15,0.00023287,2]
[386656342,1758451862409,-1988.96,0.00023287,2]
[386656343,1758451862419,-480.0,0.00023287,2]
[386656344,1758451862429,-500.0,0.00023287,2]
[386656345,1758451862440,-480.0,0.00023287,2]
[386656346,1758451862450,-557.88,0.00023287,2]
[386656347,1758451862461,-1814.27,0.00023287,2]
[386656348,1758451862471,-480.0,0.00023287,2]
[386656349,1758451862481,-852.0,0.00023287,2]
[386656350,1758451862491,-877.9,0.00023287,2]
[386656351,1758451862500,-2934.94,0.00023287,2]
[386656352,1758451862510,-480.0,0.00023287,2]
[386656353,1758451862520,-151.922164,0.00023287,7]
[386656354,1758451862529,-886.63,0.00023287,2]
[386656355,1758451862538,-151.0,0.00023287,7]
[386656356,1758451862548,-1154.68,0.00023287,2]
[386656357,1758451862558,-480.0,0.00023287,2]
[386656358,1758451862568,-151.0,0.00023287,7]
[386656359,1758451862577,-10502.96,0.00023287,2]
[386656360,1758451862587,-586.27,0.00023287,2]
[386656361,1758451862597,-768.24,0.00023287,2]
[386656362,1758451862606,-987.82,0.00023287,2]
[386656363,1758451862617,-187.52192329,0.00023287,2]
[386656364,1758451862626,-521.16472819,0.00023287,2]
[386656365,1758451862636,-530.61,0.00023287,2]
[386656366,1758451862646,-1896.42,0.00023287,2]
[386656367,1758451862655,-480.0,0.00023287,2]
[386656368,1758451862664,-480.0,0.00023287,2]
[386656369,1758451862673,-186.82874435,0.00023287,2]
[386656370,1758451862683,-480.0,0.00023287,2]
[386656371,1758451862693,-970.28,0.00023287,2]
[386656372,1758451862702,-448.40833389,0.00023287,2]
[386656373,1758451862713,-519.16,0.00023287,2]
[386656374,1758451862722,-1102.68,0.00023287,2]
[386656375,1758451862731,-480.0,0.00023287,2]
[386656376,1758451862740,-341.28615264,0.00023287,2]
[386656377,1758451862753,-650.16,0.00023287,2]
[386656378,1758451862762,-864.96,0.00023287,2]
[386656379,1758451862772,-3277.35130582,0.00023287,2]
[386656380,1758451862907,-21.73869418,0.00023287,2]
[386656381,1758451862918,-591.31267047,0.00023287,2]
[386656382,1758451863110,-277.55444643,0.00019178,2]
[386656383,1758451863298,-202.44555357,0.00019178,2]
[386656384,1758451863308,-480.0,0.00019178,2]
[386656385,1758451863318,-480.0,0.00019178,2]
[386656386,1758451863330,-480.0,0.00019178,2]
[386656387,1758451863341,-480.0,0.00019452,2]
[386656388,1758451863351,-490.37610235,0.00019726,2]
[386656389,1758451863362,-153.668486,0.00021643,2]
[386656390,1758451863372,-151.0,0.00021643,2]
[386656391,1758451863383,-480.0,0.00022465,2]
[386656392,1758451863393,-480.0,0.00022739,2]
[386656393,1758451863403,-151.0,0.00023013,7]
[386656394,1758451863414,-480.0,0.00023013,2]
[386656395,1758451863423,-160.0,0.000231,7]
[386656396,1758451863433,-620.62732953,0.00023287,2]
[386656397,1758451863444,-480.0,0.00023287,2]
[386656398,1758451863454,-151.0,0.00023288,7]
[386656399,1758451863464,-151.0,0.00023288,7]
[386656400,1758451863473,-500.0,0.00023288,2]
[386656401,1758451863484,-150.0,0.00023315,2]
[386656402,1758451863494,-217.14252855,0.00023315,9]
[386656403,1758451863733,-480.0,0.00019178,2]
[386656404,1758451863743,-480.0,0.00019178,2]
[386656405,1758451863757,-480.0,0.00019178,2]
[386656406,1758451863767,-386.99539939,0.00019452,2]
[386656407,1758451863779,-93.00460061,0.00019452,2]
[386656408,1758451863789,-600.06,0.00019452,2]
[386656409,1758451863799,-480.0,0.00019452,2]
[386656410,1758451863809,-364.01,0.00019452,2]
[386656411,1758451863818,-480.0,0.00019726,2]
[386656412,1758451863828,-480.0,0.00019726,2]
[386656413,1758451863838,-480.0,0.0002,2]
[386656414,1758451863848,-480.0,0.0002,2]
[386656415,1758451863858,-480.0,0.00020273,2]
[386656416,1758451863868,-480.0,0.00020547,2]
[386656417,1758451863879,-10.85747145,0.00023315,9]
[386656418,1758451863891,-84.95906094,0.00023333,7]
[386656419,1758451863903,-66.04093906,0.00023333,7]
[386656420,1758451863912,-151.0,0.00023333,7]
[386656421,1758451863921,-152.252913,0.00023333,7]
[386656422,1758451863930,-151.0,0.00023333,7]
[386656423,1758451863940,-151.0,0.00023333,7]
[386656424,1758451863950,-383.94246393,0.0002334,2]
[386656425,1758451863961,-3236.89427064,0.0002334,2]
[386656426,1758451863971,-179.0,0.00023377,2]
[386656427,1758451863980,-250.0,0.000234,2]
[386656428,1758451863990,-250.0,0.000234,2]
[386656429,1758451863999,-250.0,0.000234,2]
[386656430,1758451864009,-250.0,0.000234,2]
[386656431,1758451864019,-250.0,0.000234,2]
[386656432,1758451864030,-151.8,0.000234,2]
[386656433,1758451864040,-375.47544541,0.00023429,2]
[386656434,1758451864061,-480.0,0.00019178,2]
[386656435,1758451864071,-480.0,0.00020273,2]
[386656436,1758451864082,-74.52455459,0.00023429,2]
[386656437,1758451864091,-12177.7604813,0.0002344,2]
[386656438,1758451865164,-333.23718229,0.00019178,2]
[386656439,1758451896298,500.0,0.00019077,2]
[386656440,1758451896328,500.0,0.00019077,2]
[386656441,1758451896361,166.0216674,0.00019077,2]
[386656442,1758451955764,187.06693777,0.00027397,120]
[386656443,1758452007778,181.1468521,0.00018739,2]
[386656444,1758452084418,957.2933352,0.00018591,2]
[386656445,1758452142015,5168.1114764,0.00018246,2]
[386656446,1758452143463,159.0,8e-07,2]
[386656447,1758452178560,161.59549139,0.00019,2]
[386656448,1758452213671,-157.2168775,0.00019077,2]
[386656449,1758452213700,-500.0,0.00019173,2]
[386656450,1758452213728,-500.0,0.00019173,2]
[386656451,1758452213756,-500.0,0.00019173,2]
[386656452,1758452213784,-500.0,0.00019173,2]
[386656453,1758452213812,-500.0,0.00019173,2]
[386656454,1758452213843,-500.0,0.00019173,2]
[386656455,1758452213874,-500.0,0.00019173,2]
[386656456,1758452213904,-1200.0,0.00019176,2]
[386656457,1758452214511,-300.0,0.00019176,2]
[386656458,1758452223622,-300.0,0.00019176,2]
[386656459,1758452233616,-500.0,0.00019173,2]
[386656460,1758452233806,-9822.10974384,0.00019177,2]
[386656461,1758452233922,-10000.01,0.00019177,2]
[386656462,1758452234077,-10000.01,0.00019177,2]
[386656463,1758452243639,-1200.0,0.00019176,2]
[386656464,1758452243676,-7600.01,0.00019177,2]
[386656468,1758452341421,666.0,0.00018399,2]
[386656470,1758452434269,-300.0,0.00019177,2]
[386656471,1758452434296,-300.0,0.00019177,2]
[386656472,1758452434325,-300.0,0.00019177,2]
[386656473,1758452434353,-300.0,0.00019177,2]
[386656474,1758452434382,-1200.0,0.00019177,2]
[386656475,1758452434410,-1000.0,0.00019177,2]
[386656476,1758452434438,-1000.0,0.00019177,2]
[386656477,1758452434466,-200.01,0.00019177,2]
[386656478,1758452434647,-133.99,0.00019177,2]
[386656479,1758452528111,10000.01,0.00018388,2]
[386656480,1758452528133,10000.01,0.00018388,2]
[386656481,1758452528156,10000.01,0.00018388,2]
[386656482,1758452528179,13.9301576,0.00018388,2]
[386656483,1758452713001,866.067376,0.00018245,2]
[386656490,1758452769952,9120.0124664,0.00019,2]
[386656491,1758452769974,10000.01,0.00019,2]
[386656492,1758452769995,10000.01,0.00019,2]
[386656493,1758452770015,10000.01,0.00019,2]
[386656494,1758452770036,10000.01,0.00019,2]
[386656495,1758452770056,10000.01,0.00019,2]
[386656496,1758452770077,10000.01,0.00019,2]
[386656497,1758452770097,4649.9275336,0.00019,2]
[386656500,1758452808126,-218.3499,0.00019078,2]
[386656504,1758452822354,250.043629,0.00018176,2]
[386656508,1758452943999,217.55534118,0.00018978,2]
[386656512,1758453032530,-184.70669498,0.00019078,2]
[386656513,1758453032539,-2580.97449882,0.00019078,2]
[386656514,1758453032549,-1200.0,0.00019166,2]
[386656515,1758453032558,-1200.0,0.00019167,2]
[386656516,1758453032570,-240.0,0.00019167,2]
[386656517,1758453032579,-300.0,0.00019167,2]
[386656518,1758453032589,-300.0,0.00019167,2]
[386656519,1758453032598,-300.0,0.00019167,2]
[386656520,1758453032608,-300.0,0.00019167,2]
[386656521,1758453032618,-500.0,0.00019167,2]
[386656522,1758453032627,-500.0,0.00019167,2]
[386656523,1758453032637,-500.0,0.00019167,2]
[386656524,1758453032646,-500.0,0.00019167,2]
[386656525,1758453032655,-500.0,0.00019167,2]
[386656526,1758453032665,-500.0,0.00019167,2]
[386656527,1758453032675,-500.0,0.00019167,2]
[386656528,1758453032684,-241.09797533,0.00019167,2]
[386656529,1758453032696,-267.3281057,0.00019167,2]
[386656530,1758453032706,-232.6718943,0.00019167,2]
[386656557,1758453038197,-267.3281057,0.00019167,2]
[386656559,1758453038207,-500.0,0.00019167,2]
[386656561,1758453038217,-500.0,0.00019167,2]
[386656563,1758453038226,-436.23365693,0.00019167,2]
[386656565,1758453038238,-54.67273168,0.00019167,2]
[386656567,1758453038247,-335.52684228,0.00019167,2]
[386656569,1758453038259,-164.47315772,0.00019167,2]
[386656571,1758453038268,-500.0,0.00019167,2]
[386656573,1758453038279,-500.0,0.00019167,2]
[386656575,1758453038288,-500.0,0.00019167,2]
[386656577,1758453038298,-123.17684228,0.00019167,2]
[386656580,1758453038311,-376.82315772,0.00019167,2]
[386656582,1758453038321,-500.0,0.00019167,2]
[386656584,1758453038330,-500.0,0.00019167,2]
[386656585,1758453038340,-339.57812602,0.00019167,2]
[386656588,1758453038349,-500.0,0.00019167,2]
[386656589,1758453038358,-500.0,0.00019167,2]
[386656592,1758453038368,-500.0,0.00019167,2]
[386656593,1758453038376,-500.0,0.00019167,2]
[386656596,1758453038386,-448.18203313,0.00019167,2]
[386656598,1758453038395,-500.0,0.00019167,2]
[386656600,1758453038404,-500.0,0.00019167,2]
[386656602,1758453038413,-500.0,0.00019167,2]
[386656603,1758453038423,-500.0,0.00019167,2]
[386656605,1758453038432,-196.34050285,0.00019167,2]
[386656607,1758453038441,-500.0,0.00019167,2]
[386656609,1758453038450,-500.0,0.00019167,2]
[386656611,1758453038459,-206.60425925,0.00019167,2]
[386656614,1758453038471,-293.39574075,0.00019167,2]
[386656616,1758453038480,-500.0,0.00019167,2]
[386656618,1758453038489,-500.0,0.00019167,2]
[386656620,1758453038498,-500.0,0.00019167,2]
[386656622,1758453038507,-500.0,0.00019167,2]
[386656624,1758453038516,-500.0,0.00019167,2]
[386656625,1758453038526,-500.0,0.00019167,2]
[386656627,1758453038536,-500.0,0.00019167,2]
[386656628,1758453038546,-500.0,0.00019167,2]
[386656629,1758453038555,-500.0,0.00019167,2]
[386656630,1758453038564,-500.0,0.00019167,2]
[386656631,1758453038573,-500.0,0.00019167,2]
[386656632,1758453038582,-500.0,0.00019167,2]
[386656633,1758453038592,-500.0,0.00019167,2]
[386656634,1758453038601,-500.0,0.00019167,2]
[386656635,1758453038611,-500.0,0.00019167,2]
[386656636,1758453038620,-500.0,0.00019167,2]
[386656637,1758453038629,-500.0,0.00019167,2]
[386656638,1758453038639,-500.0,0.00019167,2]
[386656639,1758453038649,-500.0,0.00019167,2]
[386656640,1758453038658,-500.0,0.00019167,2]
[386656641,1758453038667,-445.68555579,0.00019167,2]
[386656642,1758453038678,-500.0,0.00019167,2]
[386656643,1758453038687,-500.0,0.00019167,2]
[386656644,1758453038696,-500.0,0.00019167,2]
[386656645,1758453038705,-500.0,0.00019167,2]
[386656646,1758453038714,-500.0,0.00019167,2]
[386656647,1758453038723,-168.29253221,0.00019167,2]
[386656648,1758453038733,-500.0,0.00019167,2]
[386656649,1758453038742,-500.0,0.00019167,2]
[386656650,1758453038751,-500.0,0.00019167,2]
[386656651,1758453038760,-500.0,0.00019167,2]
[386656652,1758453038769,-500.0,0.00019167,2]
[386656653,1758453038778,-500.0,0.00019167,2]
[386656654,1758453038786,-500.0,0.00019167,2]
[386656655,1758453038796,-500.0,0.00019167,2]
[386656656,1758453038806,-509.45,0.00019168,3]
[386656657,1758453038815,-254.72,0.00019168,3]
[386656658,1758453038824,-764.21,0.00019168,3]
[386656659,1758453038834,-971.11,0.00019168,3]
[386656660,1758453038843,-860.05,0.00019168,3]
[386656661,1758453038853,-430.02,0.00019168,3]
[386656662,1758453038863,-215.01,0.00019168,3]
[386656663,1758453038872,-645.07,0.00019168,3]
[386656664,1758453038881,-339.17605502,0.00019172,2]
[386656665,1758453038891,-189.2962499,0.00019172,2]
[386656666,1758453038901,-7673.85840066,0.00019173,2]
[386656667,1758453038910,-500.0,0.00019175,2]
[386656668,1758453038927,-164.60000001,0.00019176,2]
[386656669,1758453038936,-666.0,0.00019177,2]
[386656670,1758453038946,-1000.0,0.00019177,2]
[386656671,1758453038955,-1000.0,0.00019177,2]
[386656672,1758453038965,-1000.0,0.00019177,2]
[386656673,1758453038974,-1000.0,0.00019177,2]
[386656674,1758453038983,-1000.0,0.00019177,2]
[386656675,1758453038992,-1000.0,0.00019177,2]
[386656676,1758453039007,-1000.0,0.00019177,2]
[386656677,1758453039015,-1000.0,0.00019177,2]
[386656678,1758453039025,-1000.0,0.00019177,2]
[386656679,1758453039035,-489.47576254,0.00019178,2]
[386656680,1758453039044,-480.0,0.00019178,2]
[386656681,1758453039053,-469.74137551,0.00019178,2]
[386656682,1758453039063,-480.0,0.00019178,2]
[386656683,1758453039072,-480.0,0.00019178,2]
[386656684,1758453039082,-480.0,0.00019178,2]
[386656685,1758453039092,-480.0,0.00019178,2]
[386656686,1758453039100,-480.0,0.00019178,2]
[386656687,1758453039110,-480.0,0.00019178,2]
[386656688,1758453039119,-480.0,0.00019178,2]
[386656689,1758453039128,-480.0,0.00019178,2]
[386656690,1758453039138,-480.0,0.00019178,2]
[386656691,1758453039147,-396.69948626,0.00019178,2]
[386656692,1758453039156,-480.0,0.00019178,2]
[386656693,1758453039165,-480.0,0.00019178,2]
[386656694,1758453039175,-414.85810054,0.00019178,2]
[386656695,1758453039186,-480.0,0.00019178,2]
[386656696,1758453039194,-1004.48556402,0.00019178,2]
[386656697,1758453039204,-486.88741737,0.00019178,2]
[386656698,1758453039213,-480.0,0.00019178,2]
[386656699,1758453039223,-480.0,0.00019178,2]
[386656700,1758453039232,-485.41186692,0.00019178,2]
[386656701,1758453039242,-480.0,0.00019178,2]
[386656702,1758453039251,-480.0,0.00019178,2]
[386656703,1758453039260,-480.0,0.00019178,2]
[386656704,1758453039270,-480.0,0.00019178,2]
[386656705,1758453039279,-480.0,0.00019178,2]
[386656706,1758453039289,-480.0,0.00019178,2]
[386656707,1758453039298,-447.84499804,0.00019178,2]
[386656708,1758453039307,-480.0,0.00019178,2]
[386656709,1758453039317,-480.0,0.00019178,2]
[386656710,1758453039326,-480.0,0.00019178,2]
[386656711,1758453039336,-469.6489429,0.00019178,2]
[386656712,1758453039345,-480.0,0.00019178,2]
[386656713,1758453039355,-480.0,0.00019178,2]
[386656714,1758453039364,-480.0,0.00019178,2]
[386656715,1758453039373,-444.86832342,0.00019178,2]
[386656716,1758453039382,-480.0,0.00019178,2]
[386656717,1758453039391,-480.0,0.00019178,2]
[386656718,1758453039401,-480.0,0.00019178,2]
[386656719,1758453039410,-480.0,0.00019178,2]
[386656720,1758453039420,-314.68369324,0.00019178,2]
[386656721,1758453039430,-480.0,0.00019178,2]
[386656722,1758453039439,-480.0,0.00019178,2]
[386656723,1758453039449,-480.0,0.00019178,2]
[386656724,1758453039458,-480.0,0.00019178,2]
[386656725,1758453039468,-480.0,0.00019178,2]
[386656726,1758453039478,-467.70068758,0.00019178,2]
[386656727,1758453039488,-480.0,0.00019178,2]
[386656728,1758453039497,-480.0,0.00019178,2]
[386656729,1758453039507,-480.0,0.00019178,2]
[386656730,1758453039516,-480.0,0.00019178,2]
[386656731,1758453039525,-480.0,0.00019178,2]
[386656732,1758453039535,-313.34506877,0.00019178,2]
[386656733,1758453039544,-333.99339596,0.00019178,2]
[386656734,1758453039554,-480.0,0.00019178,2]
[386656735,1758453039563,-486.25790352,0.00019178,2]
[386656736,1758453039572,-482.69259824,0.00019178,2]
[386656737,1758453039582,-480.0,0.00019178,2]
[386656738,1758453039591,-480.0,0.00019178,2]
[386656739,1758453039601,-480.0,0.00019178,2]
[386656740,1758453039611,-480.0,0.00019178,2]
[386656741,1758453039620,-480.0,0.00019178,2]
[386656742,1758453039630,-480.0,0.00019178,2]
[386656743,1758453039640,-442.07884813,0.00019178,2]
[386656744,1758453039649,-480.0,0.00019178,2]
[386656745,1758453039659,-480.0,0.00019178,2]
[386656746,1758453039668,-480.0,0.00019178,2]
[386656747,1758453039678,-480.0,0.00019178,2]
[386656748,1758453039687,-480.0,0.00019178,2]
[386656749,1758453039697,-480.0,0.00019178,2]
[386656750,1758453039706,-480.0,0.00019178,2]
[386656751,1758453039716,-480.0,0.00019178,2]
[386656753,1758453039725,-199.84704453,0.00019178,2]
[386656754,1758453039735,-480.0,0.00019178,2]
[386656755,1758453039744,-480.0,0.00019178,2]
[386656756,1758453039754,-480.0,0.00019178,2]
[386656757,1758453039764,-251.4830029,0.00019178,2]
[386656758,1758453039773,-480.0,0.00019178,2]
[386656759,1758453039783,-480.0,0.00019178,2]
[386656760,1758453039792,-480.0,0.00019178,2]
[386656761,1758453039802,-480.0,0.00019178,2]
[386656762,1758453039811,-480.0,0.00019178,2]
[386656763,1758453039821,-481.31608615,0.00019178,2]
[386656764,1758453039831,-480.0,0.00019178,2]
[386656765,1758453039840,-480.0,0.00019178,2]
[386656766,1758453039850,-480.0,0.00019178,2]
[386656767,1758453039860,-482.26424483,0.00019178,2]
[386656768,1758453039869,-480.0,0.00019178,2]
[386656769,1758453039878,-483.99853273,0.00019178,2]
[386656770,1758453039887,-480.0,0.00019178,2]
[386656771,1758453039896,-480.0,0.00019178,2]
[386656772,1758453039906,-480.0,0.00019178,2]
[386656773,1758453039915,-480.0,0.00019178,2]
[386656774,1758453039925,-480.0,0.00019178,2]
[386656775,1758453039935,-480.0,0.00019178,2]
[386656776,1758453039944,-480.0,0.00019178,2]
[386656777,1758453039954,-480.0,0.00019178,2]
[386656778,1758453039963,-480.0,0.00019178,2]
[386656779,1758453039972,-480.0,0.00019178,2]
[386656780,1758453039983,-480.0,0.00019178,2]
[386656781,1758453039992,-480.0,0.00019178,2]
[386656782,1758453040001,-480.0,0.00019178,2]
[386656783,1758453040011,-480.0,0.00019178,2]
[386656784,1758453040020,-488.87201841,0.00019178,2]
[386656786,1758453040031,-480.0,0.00019178,2]
[386656787,1758453040040,-480.0,0.00019178,2]
[386656788,1758453040051,-255.21533948,0.00019178,2]
[386656789,1758453040061,-480.0,0.00019178,2]
[386656790,1758453040070,-575.14382805,0.00019178,2]
[386656791,1758453040079,-480.0,0.00019178,2]
[386656792,1758453040089,-480.0,0.00019178,2]
[386656794,1758453040099,-480.0,0.00019178,2]
[386656796,1758453040108,-372.9233371,0.00019178,2]
[386656797,1758453040117,-462.23652611,0.00019178,2]
[386656799,1758453040126,-480.0,0.00019178,2]
[386656801,1758453040135,-489.99276791,0.00019178,2]
[386656803,1758453040145,-480.0,0.00019178,2]
[386656805,1758453040155,-480.0,0.00019178,2]
[386656807,1758453040164,-480.0,0.00019178,2]
[386656809,1758453040173,-493.21689051,0.00019178,2]
[386656811,1758453040182,-7827.07,0.00019178,2]
[386656813,1758453040192,-480.70854724,0.00019178,2]
[386656816,1758453040201,-480.0,0.00019178,2]
[386656817,1758453040210,-480.0,0.00019178,2]
[386656819,1758453040220,-480.0,0.00019178,2]
[386656822,1758453040230,-480.0,0.00019178,2]
[386656823,1758453040239,-480.0,0.00019178,2]
[386656825,1758453040249,-480.0,0.00019178,2]
[386656827,1758453040258,-480.0,0.00019178,2]
[386656829,1758453040268,-480.0,0.00019178,2]
[386656831,1758453040277,-480.0,0.00019178,2]
[386656833,1758453040287,-480.0,0.00019178,2]
[386656835,1758453040296,-480.0,0.00019178,2]
[386656837,1758453040305,-491.87442836,0.00019178,2]
[386656839,1758453040314,-158.76834589,0.00019178,2]
[386656841,1758453040323,-480.0,0.00019178,2]
[386656843,1758453040332,-480.0,0.00019178,2]
[386656845,1758453040341,-480.0,0.00019178,2]
[386656847,1758453040350,-489.24244509,0.00019178,2]
[386656849,1758453040359,-480.0,0.00019178,2]
[386656851,1758453040369,-480.0,0.00019178,2]
[386656853,1758453040378,-480.0,0.00019178,2]
[386656855,1758453040387,-480.0,0.00019178,2]
[386656857,1758453040397,-312.87729534,0.00019178,2]
[386656859,1758453040406,-546.9188699,0.00019178,2]
[386656861,1758453040415,-606.43944849,0.00019178,2]
[386656863,1758453040425,-480.0,0.00019178,2]
[386656865,1758453040434,-482.38716324,0.00019178,2]
[386656867,1758453040443,-480.0,0.00019178,2]
[386656869,1758453040452,-482.20840444,0.00019178,2]
[386656871,1758453040461,-480.0,0.00019178,2]
[386656873,1758453040470,-480.0,0.00019178,2]
[386656875,1758453040479,-485.11327729,0.00019178,2]
[386656877,1758453040488,-246.57708116,0.00019178,2]
[386656879,1758453040497,-480.50877453,0.00019178,2]
[386656881,1758453040506,-480.0,0.00019178,2]
[386656883,1758453040515,-480.0,0.00019178,2]
[386656885,1758453040524,-461.3338668,0.00019178,2]
[386656887,1758453040533,-480.0,0.00019178,2]
[386656889,1758453040542,-488.79425177,0.00019178,2]
[386656891,1758453040551,-480.0,0.00019178,2]
[386656893,1758453040560,-481.3665085,0.00019178,2]
[386656895,1758453040569,-480.0,0.00019178,2]
[386656897,1758453040578,-480.0,0.00019178,2]
[386656899,1758453040587,-1298.88,0.00019178,2]
[386656901,1758453040596,-1298.88,0.00019178,2]
[386656903,1758453040605,-480.0,0.00019178,2]
[386656905,1758453040615,-480.0,0.00019178,2]
[386656907,1758453040623,-480.0,0.00019178,2]
[386656909,1758453040633,-1298.88,0.00019178,2]
[386656927,1758453040793,-1298.88,0.00019178,2]
[386656929,1758453040803,-1298.88,0.00019178,2]
[386656931,1758453040812,-1298.88,0.00019178,2]
[386656933,1758453040821,-1298.88,0.00019178,2]
[386656935,1758453040830,-480.0,0.00019178,2]
[386656937,1758453040839,-1298.88,0.00019178,2]
[386656939,1758453040848,-480.0,0.00019178,2]
[386656941,1758453040857,-1298.88,0.00019178,2]
[386656943,1758453040866,-1298.88,0.00019178,2]
[386656945,1758453040875,-1298.88,0.00019178,2]
[386656947,1758453040884,-1298.88,0.00019178,2]
[386656949,1758453040893,-1298.88,0.00019178,2]
[386656951,1758453040902,-1298.88,0.00019178,2]
[386656953,1758453040911,-1298.88,0.00019178,2]
[386656955,1758453040923,-480.0,0.00019178,2]
[386656957,1758453040933,-480.0,0.00019178,2]
[386656959,1758453040942,-480.0,0.00019178,2]
[386656961,1758453040950,-491.62782442,0.00019178,2]
[386656963,1758453040959,-480.0,0.00019178,2]
[386656965,1758453040970,-480.0,0.00019178,2]
[386656967,1758453040979,-480.0,0.00019178,2]
[386656969,1758453040987,-480.0,0.00019178,2]
[386656971,1758453040997,-480.0,0.00019178,2]
[386656973,1758453041007,-480.0,0.00019178,2]
[386656975,1758453041016,-480.0,0.00019178,2]
[386656977,1758453041025,-480.0,0.00019178,2]
[386656979,1758453041034,-500.0,0.00019178,2]
[386656981,1758453041043,-480.0,0.00019178,2]
[386656982,1758453041052,-480.0,0.00019178,2]
[386656984,1758453041062,-480.0,0.00019178,2]
[386656986,1758453041071,-480.93392864,0.00019178,2]
[386656988,1758453041080,-480.0,0.00019178,2]
[386656990,1758453041089,-812.51,0.00019178,2]
[386656992,1758453041098,-480.0,0.00019178,2]
[386656994,1758453041107,-480.0,0.00019178,2]
[386656996,1758453041116,-462.99680815,0.00019178,2]
[386656998,1758453041125,-480.0,0.00019178,2]
[386657000,1758453041134,-462.19500077,0.00019178,2]
[386657002,1758453041143,-480.0,0.00019178,2]